[Event "Titled Tuesday Blitz July 05 Late 2022"]
[White "Tanenbaum, Zachary"]
[Black "Eynullayev, Altay"]
[WhiteFideId "2060850"]
[BlackFideId "13413562"]
[WhiteElo "2175"]
[BlackElo "2079"]
[Result "0-1"]
[Round "04"]
[TimeControl "180+1"]
[Date "2022.07.06"]
[WhiteClock "0:00:04"]
[BlackClock "0:00:27"]

1. e4 {[%clk 0:03:00]}  c5 {[%clk 0:02:57]} 2. Nf3 {[%clk 0:03:00]}  d6 {[%clk 0:02:58]} 3. d4 {[%clk 0:03:00]}  cxd4 {[%clk 0:02:58]} 4. Nxd4 {[%clk 0:03:01]}  Nf6 {[%clk 0:02:59]} 5. Nc3 {[%clk 0:03:02]}  a6 {[%clk 0:02:59]} 6. Be3 {[%clk 0:03:02]}  e5 {[%clk 0:02:59]} 7. Nb3 {[%clk 0:03:03]}  Be7 {[%clk 0:02:59]} 8. h3 {[%clk 0:03:02]}  O-O {[%clk 0:02:51]} 9. g4 {[%clk 0:03:02]}  b5 {[%clk 0:02:49]} 10. g5 {[%clk 0:03:00]}  Nfd7 {[%clk 0:02:45]} 11. Qd2 {[%clk 0:02:57]}  Bb7 {[%clk 0:02:33]} 12. O-O-O {[%clk 0:02:55]}  Nb6 {[%clk 0:02:32]} 13. h4 {[%clk 0:02:36]}  b4 {[%clk 0:02:24]} 14. Nd5 {[%clk 0:02:35]}  Bxd5 {[%clk 0:02:23]} 15. exd5 {[%clk 0:02:35]}  a5 {[%clk 0:02:23]} 16. Kb1 {[%clk 0:02:33]}  a4 {[%clk 0:02:23]} 17. Nc1 {[%clk 0:02:32]}  f5 {[%clk 0:01:48]} 18. gxf6 {[%clk 0:02:25]}  Bxf6 {[%clk 0:01:46]} 19. Qxb4 {[%clk 0:02:24]}  N8d7 {[%clk 0:01:46]} 20. Bh3 {[%clk 0:02:14]}  a3 {[%clk 0:01:40]} 21. b3 {[%clk 0:02:05]}  Na4 {[%clk 0:01:25]} 22. Ne2 {[%clk 0:01:45]}  Ndc5 {[%clk 0:01:21]} 23. Be6+ {[%clk 0:01:12]}  Kh8 {[%clk 0:01:20]} 24. Bg5 {[%clk 0:01:03]}  Rb8 {[%clk 0:01:18]} 25. Qg4 {[%clk 0:00:57]}  Qa5 {[%clk 0:00:59]} 26. Bxf6 {[%clk 0:00:35]}  Rxf6 {[%clk 0:00:58]} 27. Rhg1 {[%clk 0:00:28]}  Rb7 {[%clk 0:00:54]} 28. Rg3 {[%clk 0:00:12]}  e4 {[%clk 0:00:46]} 29. Nd4 {[%clk 0:00:09]}  Nc3+ {[%clk 0:00:44]} 30. Kc1 {[%clk 0:00:09]}  Nxa2+ {[%clk 0:00:40]} 31. Kb1 {[%clk 0:00:09]}  Nc3+ {[%clk 0:00:40]} 32. Kc1 {[%clk 0:00:10]}  a2 {[%clk 0:00:39]} 33. Kb2 {[%clk 0:00:10]}  Nxd1+ {[%clk 0:00:38]} 34. Qxd1 {[%clk 0:00:11]}  Rxf2 {[%clk 0:00:36]} 35. Nc6 {[%clk 0:00:08]}  a1=Q+ {[%clk 0:00:29]} 36. Qxa1 {[%clk 0:00:08]}  Rxc2+ {[%clk 0:00:29]} 37. Kxc2 {[%clk 0:00:09]}  Qxa1 {[%clk 0:00:29]} 38. Rg5 {[%clk 0:00:06]}  Qa2+ {[%clk 0:00:28]} 39. Kc3 {[%clk 0:00:04]}  Rxb3+ {[%clk 0:00:28]} 40. Kd4 {[%clk 0:00:04]}  Qd2+ {[%clk 0:00:27]} 41. Kc4 {[%clk 0:00:04]}  Qd3# {[%clk 0:00:27]} 0-1


[Site "https://www.chess.com"]

[Event "Titled Tuesday Blitz July 05 Late 2022"]
[White "Veiga, Jose Francisco R P Neves"]
[Black "Fernandez, Fernando"]
[WhiteFideId "1930087"]
[BlackFideId "3802299"]
[WhiteElo "2288"]
[BlackElo "2292"]
[Result "1-0"]
[Round "04"]
[TimeControl "180+1"]
[Date "2022.07.06"]
[WhiteClock "0:00:14"]
[BlackClock "0:00:01"]

1. e4 {[%clk 0:03:00]}  e5 {[%clk 0:02:59]} 2. Nf3 {[%clk 0:03:00]}  Nc6 {[%clk 0:03:00]} 3. Bb5 {[%clk 0:03:01]}  a6 {[%clk 0:02:59]} 4. Ba4 {[%clk 0:03:01]}  Nf6 {[%clk 0:03:00]} 5. O-O {[%clk 0:03:01]}  Be7 {[%clk 0:03:00]} 6. d3 {[%clk 0:03:00]}  b5 {[%clk 0:02:59]} 7. Bb3 {[%clk 0:03:01]}  d6 {[%clk 0:03:00]} 8. a4 {[%clk 0:03:01]}  Bd7 {[%clk 0:02:56]} 9. c3 {[%clk 0:03:01]}  Na5 {[%clk 0:02:47]} 10. Bc2 {[%clk 0:03:01]}  c5 {[%clk 0:02:48]} 11. h3 {[%clk 0:03:00]}  O-O {[%clk 0:02:47]} 12. d4 {[%clk 0:03:00]}  cxd4 {[%clk 0:02:30]} 13. cxd4 {[%clk 0:03:01]}  Nc6 {[%clk 0:02:29]} 14. Nc3 {[%clk 0:02:55]}  exd4 {[%clk 0:02:11]} 15. Nxd4 {[%clk 0:02:53]}  Nxd4 {[%clk 0:02:12]} 16. Qxd4 {[%clk 0:02:53]}  Rc8 {[%clk 0:02:12]} 17. axb5 {[%clk 0:02:50]}  axb5 {[%clk 0:02:13]} 18. Bb3 {[%clk 0:02:45]}  Rc5 {[%clk 0:01:53]} 19. Bf4 {[%clk 0:02:41]}  Be6 {[%clk 0:01:51]} 20. Bxe6 {[%clk 0:02:36]}  fxe6 {[%clk 0:01:52]} 21. Ra6 {[%clk 0:02:36]}  e5 {[%clk 0:01:50]} 22. Qd1 {[%clk 0:02:07]}  exf4 {[%clk 0:01:49]} 23. Qb3+ {[%clk 0:02:07]}  Kh8 {[%clk 0:01:47]} 24. f3 {[%clk 0:02:07]}  Qb8 {[%clk 0:01:30]} 25. Rd1 {[%clk 0:02:06]}  Rfc8 {[%clk 0:01:29]} 26. Qe6 {[%clk 0:02:05]}  Re5 {[%clk 0:01:24]} 27. Qf7 {[%clk 0:02:05]}  Rf8 {[%clk 0:01:22]} 28. Qb3 {[%clk 0:02:04]}  b4 {[%clk 0:01:20]} 29. Ne2 {[%clk 0:02:03]}  d5 {[%clk 0:01:13]} 30. Nxf4 {[%clk 0:01:52]}  dxe4 {[%clk 0:01:12]} 31. Ne6 {[%clk 0:01:44]}  exf3 {[%clk 0:00:58]} 32. Nxf8 {[%clk 0:01:40]}  Bc5+ {[%clk 0:00:58]} 33. Kh1 {[%clk 0:01:35]}  fxg2+ {[%clk 0:00:58]} 34. Kxg2 {[%clk 0:01:33]}  Rg5+ {[%clk 0:00:54]} 35. Kf1 {[%clk 0:01:18]}  Rg1+ {[%clk 0:00:25]} 36. Ke2 {[%clk 0:01:17]}  Qe5+ {[%clk 0:00:25]} 37. Kd2 {[%clk 0:01:16]}  Rxd1+ {[%clk 0:00:12]} 38. Kxd1 {[%clk 0:01:06]}  Bxf8 {[%clk 0:00:11]} 39. Qf7 {[%clk 0:00:50]}  Qh5+ {[%clk 0:00:06]} 40. Qxh5 {[%clk 0:00:49]}  Nxh5 {[%clk 0:00:07]} 41. Ra5 {[%clk 0:00:47]}  Nf6 {[%clk 0:00:06]} 42. Ra8 {[%clk 0:00:47]}  Kg8 {[%clk 0:00:06]} 43. Kc2 {[%clk 0:00:47]}  g5 {[%clk 0:00:05]} 44. Kd3 {[%clk 0:00:47]}  Kg7 {[%clk 0:00:04]} 45. Kd4 {[%clk 0:00:47]}  h5 {[%clk 0:00:04]} 46. Ke5 {[%clk 0:00:47]}  Be7 {[%clk 0:00:02]} 47. Kf5 {[%clk 0:00:47]}  g4 {[%clk 0:00:02]} 48. hxg4 {[%clk 0:00:46]}  hxg4 {[%clk 0:00:02]} 49. Ra7 {[%clk 0:00:46]}  Kf7 {[%clk 0:00:03]} 50. Ra1 {[%clk 0:00:45]}  Ke8 {[%clk 0:00:02]} 51. Rd1 {[%clk 0:00:44]}  g3 {[%clk 0:00:02]} 52. Rg1 {[%clk 0:00:44]}  Kf7 {[%clk 0:00:02]} 53. Rxg3 {[%clk 0:00:44]}  Ne8 {[%clk 0:00:03]} 54. Rh3 {[%clk 0:00:41]}  Nd6+ {[%clk 0:00:03]} 55. Kf4 {[%clk 0:00:27]}  Nc4 {[%clk 0:00:04]} 56. Rb3 {[%clk 0:00:26]}  Bd6+ {[%clk 0:00:03]} 57. Kf5 {[%clk 0:00:21]}  Ke7 {[%clk 0:00:01]} 58. Rh3 {[%clk 0:00:14]} 1-0


[Site "https://www.chess.com"]

[Event "Titled Tuesday Blitz July 05 Late 2022"]
[White "Xiong, Jeffery"]
[Black "Abdrlauf, Elham"]
[WhiteFideId "2047640"]
[BlackFideId "1533533"]
[WhiteElo "2714"]
[BlackElo "2429"]
[Result "1/2-1/2"]
[Round "04"]
[TimeControl "180+1"]
[Date "2022.07.05"]
[WhiteClock "0:00:04"]
[BlackClock "0:00:02"]

1. d4 {[%clk 0:03:00]}  Nf6 {[%clk 0:02:58]} 2. c4 {[%clk 0:03:01]}  e6 {[%clk 0:02:58]} 3. Nc3 {[%clk 0:03:01]}  d5 {[%clk 0:02:59]} 4. cxd5 {[%clk 0:03:00]}  exd5 {[%clk 0:03:00]} 5. Bg5 {[%clk 0:03:00]}  c6 {[%clk 0:03:01]} 6. e3 {[%clk 0:03:01]}  Bd6 {[%clk 0:03:02]} 7. Bd3 {[%clk 0:02:59]}  O-O {[%clk 0:03:02]} 8. Nf3 {[%clk 0:02:59]}  Be6 {[%clk 0:02:57]} 9. Ne5 {[%clk 0:02:59]}  c5 {[%clk 0:02:58]} 10. O-O {[%clk 0:02:57]}  Nc6 {[%clk 0:02:59]} 11. Nxc6 {[%clk 0:02:55]}  bxc6 {[%clk 0:03:00]} 12. dxc5 {[%clk 0:02:56]}  Bxc5 {[%clk 0:03:00]} 13. Rc1 {[%clk 0:02:57]}  Bd6 {[%clk 0:02:59]} 14. Na4 {[%clk 0:02:55]}  Rc8 {[%clk 0:02:58]} 15. Ba6 {[%clk 0:02:55]}  Rc7 {[%clk 0:02:56]} 16. Qd4 {[%clk 0:02:55]}  h6 {[%clk 0:02:23]} 17. Bh4 {[%clk 0:02:55]}  Qe7 {[%clk 0:02:22]} 18. Nc5 {[%clk 0:02:53]}  Bc8 {[%clk 0:02:14]} 19. Bd3 {[%clk 0:02:43]}  Be5 {[%clk 0:02:09]} 20. Qb4 {[%clk 0:02:33]}  Re8 {[%clk 0:01:52]} 21. Bg3 {[%clk 0:02:32]}  Bxg3 {[%clk 0:01:41]} 22. hxg3 {[%clk 0:02:33]}  Nd7 {[%clk 0:01:34]} 23. Qd4 {[%clk 0:02:31]}  Ne5 {[%clk 0:01:32]} 24. Be2 {[%clk 0:02:32]}  g6 {[%clk 0:01:21]} 25. Rc3 {[%clk 0:02:31]}  h5 {[%clk 0:01:21]} 26. Rfc1 {[%clk 0:02:31]}  Bg4 {[%clk 0:01:19]} 27. Bf1 {[%clk 0:02:23]}  Bd7 {[%clk 0:01:11]} 28. Nd3 {[%clk 0:02:10]}  Nxd3 {[%clk 0:01:08]} 29. Bxd3 {[%clk 0:02:09]}  Rb8 {[%clk 0:01:08]} 30. Rc5 {[%clk 0:02:07]}  Rcb7 {[%clk 0:01:04]} 31. R5c2 {[%clk 0:01:42]}  a5 {[%clk 0:00:46]} 32. a3 {[%clk 0:01:42]}  Rb6 {[%clk 0:00:38]} 33. Be2 {[%clk 0:01:35]}  Bf5 {[%clk 0:00:30]} 34. Rxc6 {[%clk 0:01:34]}  Rxb2 {[%clk 0:00:26]} 35. Bf3 {[%clk 0:01:27]}  Rb1 {[%clk 0:00:15]} 36. Qa4 {[%clk 0:00:48]}  Be4 {[%clk 0:00:09]} 37. Qxa5 {[%clk 0:00:37]}  d4 {[%clk 0:00:10]} 38. Bxe4 {[%clk 0:00:28]}  Qxe4 {[%clk 0:00:11]} 39. Qe1 {[%clk 0:00:10]}  dxe3 {[%clk 0:00:11]} 40. fxe3 {[%clk 0:00:11]}  R8b2 {[%clk 0:00:09]} 41. Qf1 {[%clk 0:00:08]}  Qxe3+ {[%clk 0:00:05]} 42. Kh2 {[%clk 0:00:09]}  Rxc1 {[%clk 0:00:05]} 43. Rxc1 {[%clk 0:00:10]}  Rb3 {[%clk 0:00:04]} 44. Rc8+ {[%clk 0:00:06]}  Kg7 {[%clk 0:00:05]} 45. Qa1+ {[%clk 0:00:06]}  f6 {[%clk 0:00:05]} 46. Rc7+ {[%clk 0:00:06]}  Kh6 {[%clk 0:00:04]} 47. Kh1 {[%clk 0:00:05]}  Rxa3 {[%clk 0:00:02]} 48. Qf1 {[%clk 0:00:02]}  Rc3 {[%clk 0:00:01]} 49. Rd7 {[%clk 0:00:01]}  Rc1 {[%clk 0:00:02]} 50. Rd1 {[%clk 0:00:01]}  Rxd1 {[%clk 0:00:03]} 51. Qxd1 {[%clk 0:00:01]}  Qxg3 {[%clk 0:00:03]} 52. Qd8 {[%clk 0:00:01]}  Qh4+ {[%clk 0:00:03]} 53. Kg1 {[%clk 0:00:02]}  Qe1+ {[%clk 0:00:04]} 54. Kh2 {[%clk 0:00:03]}  Qe5+ {[%clk 0:00:05]} 55. Kh1 {[%clk 0:00:03]}  Kg5 {[%clk 0:00:06]} 56. Qd2+ {[%clk 0:00:03]}  Qf4 {[%clk 0:00:05]} 57. Qd3 {[%clk 0:00:03]}  h4 {[%clk 0:00:04]} 58. Kg1 {[%clk 0:00:03]}  f5 {[%clk 0:00:03]} 59. Qd8+ {[%clk 0:00:03]}  Kg4 {[%clk 0:00:04]} 60. Qd1+ {[%clk 0:00:04]}  Kg5 {[%clk 0:00:01]} 61. Qd8+ {[%clk 0:00:05]}  Kh5 {[%clk 0:00:01]} 62. Qd1+ {[%clk 0:00:05]}  Kh6 {[%clk 0:00:01]} 63. Qd8 {[%clk 0:00:06]}  Qe3+ {[%clk 0:00:02]} 64. Kh1 {[%clk 0:00:07]}  Qe1+ {[%clk 0:00:02]} 65. Kh2 {[%clk 0:00:07]}  Qg3+ {[%clk 0:00:03]} 66. Kh1 {[%clk 0:00:08]}  Qe1+ {[%clk 0:00:04]} 67. Kh2 {[%clk 0:00:08]}  Kg7 {[%clk 0:00:04]} 68. Qc7+ {[%clk 0:00:06]}  Kf6 {[%clk 0:00:04]} 69. Qd8+ {[%clk 0:00:06]}  Qe7 {[%clk 0:00:05]} 70. Qh8+ {[%clk 0:00:07]}  Kg5 {[%clk 0:00:04]} 71. Qd4 {[%clk 0:00:07]}  f4 {[%clk 0:00:03]} 72. Qd5+ {[%clk 0:00:07]}  Kf6 {[%clk 0:00:03]} 73. Qd4+ {[%clk 0:00:06]}  Kf5 {[%clk 0:00:04]} 74. Qd5+ {[%clk 0:00:06]}  Qe5 {[%clk 0:00:04]} 75. Qd7+ {[%clk 0:00:06]}  Kg5 {[%clk 0:00:04]} 76. Qd8+ {[%clk 0:00:07]}  Qf6 {[%clk 0:00:05]} 77. Qd5+ {[%clk 0:00:07]}  Kh6 {[%clk 0:00:04]} 78. Qa8 {[%clk 0:00:04]}  g5 {[%clk 0:00:04]} 79. Qc8 {[%clk 0:00:03]}  Qg7 {[%clk 0:00:02]} 80. Kh3 {[%clk 0:00:03]}  Qf6 {[%clk 0:00:02]} 81. Kg4 {[%clk 0:00:03]}  Kg6 {[%clk 0:00:02]} 82. Qg8+ {[%clk 0:00:03]}  Kh6 {[%clk 0:00:02]} 83. Qe8 {[%clk 0:00:01]}  Qg6 {[%clk 0:00:02]} 84. Qh8+ {[%clk 0:00:02]}  Qh7 {[%clk 0:00:03]} 85. Qf6+ {[%clk 0:00:02]}  Qg6 {[%clk 0:00:02]} 86. Qh8+ {[%clk 0:00:03]}  Qh7 {[%clk 0:00:02]} 87. Qf6+ {[%clk 0:00:03]}  Qg6 {[%clk 0:00:02]} 88. Qh8+ {[%clk 0:00:04]} 1/2-1/2


[Site "https://www.chess.com"]

[Event "Titled Tuesday Blitz July 05 Late 2022"]
[White "Abdrlauf, Elham"]
[Black "Martinez Alcantara, Jose Eduardo"]
[WhiteFideId "1533533"]
[BlackFideId "3805662"]
[WhiteElo "2429"]
[BlackElo "2703"]
[Result "1/2-1/2"]
[Round "05"]
[TimeControl "180+1"]
[Date "2022.07.05"]
[WhiteClock "0:00:31"]
[BlackClock "0:00:29"]

1. e4 {[%clk 0:02:59]}  e5 {[%clk 0:03:00]} 2. Nc3 {[%clk 0:03:00]}  Nf6 {[%clk 0:02:59]} 3. Bc4 {[%clk 0:03:00]}  d6 {[%clk 0:02:52]} 4. Nge2 {[%clk 0:02:58]}  Be7 {[%clk 0:02:52]} 5. O-O {[%clk 0:02:58]}  O-O {[%clk 0:02:53]} 6. d4 {[%clk 0:02:55]}  Nc6 {[%clk 0:02:49]} 7. h3 {[%clk 0:02:50]}  Nd7 {[%clk 0:02:24]} 8. a3 {[%clk 0:02:48]}  Nb6 {[%clk 0:02:21]} 9. Ba2 {[%clk 0:02:48]}  Bf6 {[%clk 0:02:21]} 10. Be3 {[%clk 0:02:48]}  exd4 {[%clk 0:02:10]} 11. Nxd4 {[%clk 0:02:49]}  Ne5 {[%clk 0:02:11]} 12. Qe2 {[%clk 0:02:45]}  Nc6 {[%clk 0:02:05]} 13. Rad1 {[%clk 0:02:44]}  Nxd4 {[%clk 0:02:06]} 14. Bxd4 {[%clk 0:02:45]}  Bxd4 {[%clk 0:02:06]} 15. Rxd4 {[%clk 0:02:46]}  Qf6 {[%clk 0:02:07]} 16. Rfd1 {[%clk 0:02:44]}  Be6 {[%clk 0:02:05]} 17. Bxe6 {[%clk 0:02:34]}  Qxe6 {[%clk 0:01:59]} 18. Qd3 {[%clk 0:02:08]}  a6 {[%clk 0:01:55]} 19. Nd5 {[%clk 0:01:57]}  Nxd5 {[%clk 0:01:55]} 20. exd5 {[%clk 0:01:57]}  Qf6 {[%clk 0:01:56]} 21. c3 {[%clk 0:01:58]}  Rfe8 {[%clk 0:01:54]} 22. Re4 {[%clk 0:01:58]}  Re5 {[%clk 0:01:35]} 23. Rde1 {[%clk 0:01:52]}  Rae8 {[%clk 0:01:35]} 24. f4 {[%clk 0:01:50]}  R5e7 {[%clk 0:01:15]} 25. Kf2 {[%clk 0:01:43]}  h5 {[%clk 0:01:05]} 26. Rxe7 {[%clk 0:01:30]}  Rxe7 {[%clk 0:01:05]} 27. Rxe7 {[%clk 0:01:24]}  Qxe7 {[%clk 0:01:06]} 28. Qe2 {[%clk 0:00:54]}  Qf6 {[%clk 0:00:57]} 29. Kf3 {[%clk 0:00:41]}  Kf8 {[%clk 0:00:45]} 30. g4 {[%clk 0:00:35]}  hxg4+ {[%clk 0:00:45]} 31. hxg4 {[%clk 0:00:36]}  Qh4 {[%clk 0:00:43]} 32. g5 {[%clk 0:00:25]}  Qh1+ {[%clk 0:00:38]} 33. Qg2 {[%clk 0:00:25]}  Qd1+ {[%clk 0:00:38]} 34. Kg3 {[%clk 0:00:25]}  g6 {[%clk 0:00:28]} 35. Qe4 {[%clk 0:00:10]}  Qg1+ {[%clk 0:00:28]} 36. Qg2 {[%clk 0:00:09]}  Qe1+ {[%clk 0:00:27]} 37. Qf2 {[%clk 0:00:08]}  Qd1 {[%clk 0:00:28]} 38. Qd4 {[%clk 0:00:05]}  Qe1+ {[%clk 0:00:17]} 39. Kf3 {[%clk 0:00:05]}  Qh1+ {[%clk 0:00:16]} 40. Kg3 {[%clk 0:00:05]}  Ke8 {[%clk 0:00:12]} 41. b4 {[%clk 0:00:04]}  Kd7 {[%clk 0:00:11]} 42. a4 {[%clk 0:00:04]}  Qe1+ {[%clk 0:00:11]} 43. Kf3 {[%clk 0:00:05]}  Qf1+ {[%clk 0:00:12]} 44. Kg3 {[%clk 0:00:05]}  Qb1 {[%clk 0:00:11]} 45. a5 {[%clk 0:00:05]}  Qc2 {[%clk 0:00:11]} 46. Kf3 {[%clk 0:00:03]}  Qf5 {[%clk 0:00:12]} 47. Kg3 {[%clk 0:00:04]}  Kc8 {[%clk 0:00:12]} 48. Qh8+ {[%clk 0:00:03]}  Kd7 {[%clk 0:00:12]} 49. Qd4 {[%clk 0:00:04]}  Qc2 {[%clk 0:00:07]} 50. Kf3 {[%clk 0:00:05]}  Qh2 {[%clk 0:00:07]} 51. c4 {[%clk 0:00:02]}  Qh3+ {[%clk 0:00:06]} 52. Kf2 {[%clk 0:00:02]}  Qh2+ {[%clk 0:00:06]} 53. Kf3 {[%clk 0:00:03]}  Qh1+ {[%clk 0:00:07]} 54. Kg3 {[%clk 0:00:03]}  Qb1 {[%clk 0:00:08]} 55. Qf6 {[%clk 0:00:03]}  Qe1+ {[%clk 0:00:05]} 56. Kf3 {[%clk 0:00:03]}  Qf1+ {[%clk 0:00:04]} 57. Kg3 {[%clk 0:00:04]}  Qg1+ {[%clk 0:00:04]} 58. Kf3 {[%clk 0:00:04]}  Qh1+ {[%clk 0:00:04]} 59. Kg3 {[%clk 0:00:04]}  Qe1+ {[%clk 0:00:03]} 60. Kf3 {[%clk 0:00:05]}  Qe8 {[%clk 0:00:04]} 61. c5 {[%clk 0:00:04]}  dxc5 {[%clk 0:00:02]} 62. bxc5 {[%clk 0:00:05]}  Kc8 {[%clk 0:00:02]} 63. c6 {[%clk 0:00:04]}  bxc6 {[%clk 0:00:03]} 64. dxc6 {[%clk 0:00:05]}  Qf8 {[%clk 0:00:01]} 65. Qb2 {[%clk 0:00:04]}  Qd6 {[%clk 0:00:01]} 66. Qh8+ {[%clk 0:00:05]}  Qd8 {[%clk 0:00:01]} 67. Qxd8+ {[%clk 0:00:03]}  Kxd8 {[%clk 0:00:02]} 68. Ke4 {[%clk 0:00:04]}  Ke7 {[%clk 0:00:03]} 69. Ke5 {[%clk 0:00:04]}  f6+ {[%clk 0:00:03]} 70. Kd5 {[%clk 0:00:02]}  Kf7 {[%clk 0:00:04]} 71. Kd4 {[%clk 0:00:01]}  Ke6 {[%clk 0:00:04]} 72. Ke4 {[%clk 0:00:02]}  f5+ {[%clk 0:00:04]} 73. Ke3 {[%clk 0:00:03]}  Kd6 {[%clk 0:00:05]} 74. Kd4 {[%clk 0:00:03]}  Kxc6 {[%clk 0:00:06]} 75. Ke5 {[%clk 0:00:04]}  Kd7 {[%clk 0:00:06]} 76. Kf6 {[%clk 0:00:05]}  c5 {[%clk 0:00:06]} 77. Kxg6 {[%clk 0:00:05]}  c4 {[%clk 0:00:07]} 78. Kf7 {[%clk 0:00:02]}  c3 {[%clk 0:00:07]} 79. g6 {[%clk 0:00:02]}  c2 {[%clk 0:00:08]} 80. g7 {[%clk 0:00:03]}  c1=Q {[%clk 0:00:09]} 81. g8=Q {[%clk 0:00:04]}  Qc4+ {[%clk 0:00:05]} 82. Kg7 {[%clk 0:00:05]}  Qxf4 {[%clk 0:00:01]} 83. Qf7+ {[%clk 0:00:04]}  Kc6 {[%clk 0:00:01]} 84. Qe6+ {[%clk 0:00:02]}  Qd6 {[%clk 0:00:01]} 85. Qxf5 {[%clk 0:00:02]}  Qd4+ {[%clk 0:00:01]} 86. Kg6 {[%clk 0:00:02]}  Qc4 {[%clk 0:00:02]} 87. Qe5 {[%clk 0:00:02]}  Qb4 {[%clk 0:00:02]} 88. Kf5 {[%clk 0:00:02]}  Qb5 {[%clk 0:00:02]} 89. Ke4 {[%clk 0:00:03]}  Qe2+ {[%clk 0:00:02]} 90. Kf5 {[%clk 0:00:03]}  Qf2+ {[%clk 0:00:02]} 91. Ke6 {[%clk 0:00:03]}  Qa2+ {[%clk 0:00:02]} 92. Kf5 {[%clk 0:00:04]}  Qc4 {[%clk 0:00:03]} 93. Qe4+ {[%clk 0:00:03]}  Kc5 {[%clk 0:00:03]} 94. Qxc4+ {[%clk 0:00:03]}  Kxc4 {[%clk 0:00:04]} 95. Ke4 {[%clk 0:00:04]}  Kb4 {[%clk 0:00:05]} 96. Kd3 {[%clk 0:00:05]}  Kb3 {[%clk 0:00:05]} 97. Kd2 {[%clk 0:00:05]}  Kb4 {[%clk 0:00:06]} 98. Kc1 {[%clk 0:00:06]}  Kxa5 {[%clk 0:00:07]} 99. Kb1 {[%clk 0:00:07]}  Kb5 {[%clk 0:00:08]} 100. Ka1 {[%clk 0:00:08]}  Ka4 {[%clk 0:00:09]} 101. Kb1 {[%clk 0:00:09]}  Kb4 {[%clk 0:00:10]} 102. Ka1 {[%clk 0:00:10]}  Ka3 {[%clk 0:00:11]} 103. Kb1 {[%clk 0:00:11]}  Kb4 {[%clk 0:00:11]} 104. Ka1 {[%clk 0:00:12]}  Ka4 {[%clk 0:00:12]} 105. Kb1 {[%clk 0:00:13]}  Kb5 {[%clk 0:00:13]} 106. Ka1 {[%clk 0:00:14]}  Ka5 {[%clk 0:00:14]} 107. Kb1 {[%clk 0:00:14]}  Kb6 {[%clk 0:00:15]} 108. Ka1 {[%clk 0:00:15]}  Ka7 {[%clk 0:00:16]} 109. Kb1 {[%clk 0:00:16]}  Kb7 {[%clk 0:00:17]} 110. Ka1 {[%clk 0:00:17]}  a5 {[%clk 0:00:17]} 111. Kb1 {[%clk 0:00:18]}  Ka6 {[%clk 0:00:18]} 112. Ka1 {[%clk 0:00:19]}  Kb6 {[%clk 0:00:19]} 113. Kb1 {[%clk 0:00:20]}  Kb5 {[%clk 0:00:20]} 114. Ka1 {[%clk 0:00:21]}  Ka4 {[%clk 0:00:21]} 115. Kb1 {[%clk 0:00:22]}  Kb4 {[%clk 0:00:22]} 116. Ka1 {[%clk 0:00:23]}  Ka3 {[%clk 0:00:23]} 117. Kb1 {[%clk 0:00:23]}  Kb3 {[%clk 0:00:24]} 118. Ka1 {[%clk 0:00:24]}  Ka3 {[%clk 0:00:25]} 119. Kb1 {[%clk 0:00:25]}  Kb4 {[%clk 0:00:26]} 120. Ka1 {[%clk 0:00:26]}  Ka4 {[%clk 0:00:26]} 121. Ka2 {[%clk 0:00:27]}  Kb5 {[%clk 0:00:27]} 122. Ka3 {[%clk 0:00:27]}  a4 {[%clk 0:00:25]} 123. Ka2 {[%clk 0:00:28]}  Ka5 {[%clk 0:00:25]} 124. Ka3 {[%clk 0:00:29]}  Kb5 {[%clk 0:00:26]} 125. Ka2 {[%clk 0:00:29]}  Kb4 {[%clk 0:00:27]} 126. Kb2 {[%clk 0:00:30]}  Kc4 {[%clk 0:00:28]} 127. Ka3 {[%clk 0:00:31]}  Kb5 {[%clk 0:00:29]} 1/2-1/2


[Site "https://www.chess.com"]